bitfinex-derivatives/quotes_ETHF0:USTF0_20251118
["timestamp","ask_amount","ask_price","bid_price","bid_amount"]
[1763454851822,0.5129,3046.9,3046.6,0.53237]
[1763454852119,0.5129,3046.9,3046.5,0.00492118]
[1763454852420,0.1184763,3046.9,3046.8,0.53234]
[1763454852722,0.1184763,3046.9,3046.6,0.53236]
[1763454853021,3.2078,3047.2,3046.7,0.53234]
[1763454853221,3.2078,3047.2,3046.8,0.53233]
[1763454853420,3.2078,3047.2,3046.5,0.29622118]
[1763454853624,3.2078,3047.2,3047.0,0.53229]
[1763454853815,3.2078,3047.2,3047.1,1.02569]
[1763454854010,3.7207,3047.2,3046.9,0.53231]
[1763454854516,0.8109,3047.0,3046.9,0.53231]
[1763454854714,0.8109,3047.0,3046.7,0.53235]
[1763454854922,0.5129,3046.9,3046.8,0.53234]
[1763454855417,0.298,3047.0,3046.5,0.00492118]
[1763454855617,0.298,3047.5,3047.1,0.4934]
[1763454855928,3.2078,3047.6,3046.7,4.38045021]
[1763454856124,3.2078,3047.6,3047.0,0.2913]
[1763454856317,3.2078,3047.6,3047.5,0.53222]
[1763454856517,3.2078,3047.6,3047.5,1.31692]
[1763454857213,3.2078,3047.6,3047.5,1.02562]
[1763454857408,0.0029959,3047.8,3047.2,3.2078]
[1763454857622,0.0029959,3047.8,3047.6,0.5322]
[1763454857818,0.0029959,3047.8,3047.3,0.53225]
[1763454858126,0.0029959,3047.8,3047.4,0.53223]
[1763454858621,0.5129,3047.6,3047.5,0.53222]
[1763454859019,0.8109,3047.5,3047.2,3.2078]
[1763454859324,0.8109,3047.0,3046.9,0.53232]
[1763454859621,0.5129,3047.0,3046.9,1.02572]
[1763454859822,3.5058,3047.5,3047.1,0.53229]
[1763454860124,0.4957,3047.2,3047.1,0.53229]
[1763454860418,0.4957,3047.2,3047.1,1.00119]
[1763454860624,3.5058,3047.5,3047.2,0.53227]
[1763454861027,0.4957,3047.3,3047.2,0.53227]
[1763454861526,0.4957,3047.3,3047.2,1.00117]
[1763454861721,0.4957,3047.3,3047.1,0.53228]
[1763454861922,0.4957,3047.3,3046.8,1.17265021]
[1763454862113,0.4957,3046.9,3046.8,1.70499021]
[1763454862319,0.1013057,3046.9,3046.8,0.53234]
[1763454862924,0.1013057,3046.9,3046.6,1.17265021]
[1763454863130,0.4957,3046.7,3046.6,0.53237]
[1763454863323,0.4957,3046.7,3046.5,0.29622118]
[1763454863324,0.4957,3046.6,3046.5,0.00492118]
[1763454863528,0.4957,3046.6,3046.5,2.118e-05]
[1763454867021,3.2078,3046.7,3046.6,0.525]
[1763454867522,3.2078,3046.7,3046.5,2.118e-05]
[1763454867835,0.4823,3046.6,3046.5,0.53241118]
[1763454868022,3.2078,3046.7,3046.5,2.118e-05]
[1763454869032,0.4823,3046.6,3046.5,0.53241118]
[1763454869822,3.2078,3046.7,3046.6,0.53237]
[1763454870018,0.298,3047.5,3047.1,1.05729]
[1763454870019,3.2078,3047.2,3047.1,1.05729]
[1763454871933,3.6901,3047.6,3047.5,0.53222]
[1763454872437,2.81344922,3047.6,3047.5,1.36482]
[1763454873328,2.81344922,3047.6,3047.5,0.8326]
[1763454874435,2.81344922,3047.6,3047.5,0.525]
[1763454875041,3.29574922,3047.6,3047.1,1.17265021]
[1763454875245,0.4823,3047.2,3047.1,0.53228]
[1763454875547,3.2078,3047.2,3047.0,1.05729]
[1763454876047,0.4823,3047.0,3046.9,0.53231]
[1763454876230,3.2078,3047.2,3047.1,0.525]
[1763454876431,3.2078,3047.7,3047.1,0.525]
[1763454876639,3.2078,3047.7,3047.6,0.525]
[1763454876944,0.4823,3047.5,3047.4,0.53223]
[1763454877642,0.4823,3047.5,3047.0,0.3076]
[1763454877842,0.4823,3047.5,3047.4,0.53223]
[1763454878045,3.6901,3047.7,3047.6,0.5322]
[1763454878342,0.4823,3047.4,3047.3,0.53224]
[1763454880152,0.4823,3047.2,3047.1,0.53228]
[1763454880346,3.2078,3047.7,3047.1,0.525]
[1763454880650,3.2078,3047.7,3046.8,3.2078]
[1763454880851,0.4823,3047.3,3047.2,0.53227]
[1763454881244,0.4823,3047.6,3047.5,0.53221]
[1763454881550,3.2078,3047.7,3047.6,1.0572]
[1763454882252,2.81347476,3047.7,3047.6,1.0572]
[1763454883353,3.2078,3048.6,3048.0,1.36473]
[1763454883551,3.2078,3048.6,3048.0,4.57253]
[1763454884150,3.2078,3048.6,3048.5,0.8326]
[1763454884451,0.00381398,3048.6,3048.5,4.0404]
[1763454885248,0.00492118,3048.9,3048.5,4.0404]
[1763454885249,3.2078,3049.4,3049.3,0.525]
[1763454885446,3.2078,3049.8,3049.3,3.2078]
[1763454885647,3.73962,3049.8,3049.3,3.2078]
[1763454885847,0.4823,3049.4,3049.3,3.2078]
[1763454886250,0.48498168,3049.4,3049.3,3.21094431]
[1763454886851,0.48498168,3049.4,3049.3,0.00314431]
[1763454887544,0.00268168,3049.4,3049.3,3.21094431]
[1763454888251,0.48498168,3049.4,3049.3,3.21094431]
[1763454888656,0.00268168,3049.4,3049.3,3.73594431]
[1763454889155,0.00268168,3049.4,3049.3,3.21094431]
[1763454889354,0.48498168,3049.4,3049.3,3.21094431]
[1763454889654,0.00268168,3049.4,3049.3,3.73594431]
[1763454889948,0.48498168,3049.4,3049.3,3.21094431]
[1763454890142,0.00268168,3049.4,3049.3,3.73594431]
[1763454890348,0.00268168,3049.4,3049.3,3.21094431]
[1763454891658,0.00268168,3049.4,3049.3,3.73594431]
[1763454891952,0.00268168,3049.4,3049.3,3.21094431]
[1763454892153,0.48498168,3049.4,3049.3,0.00314431]
[1763454892948,0.4823,3048.6,3048.5,3.2078]
[1763454893251,0.4823,3048.3,3048.2,0.00492118]
[1763454893853,0.4823,3048.3,3048.2,0.00820154]
[1763454894758,4.04297,3049.0,3048.2,0.53320154]
[1763454895058,0.53201,3048.7,3048.2,0.53320154]
[1763454895358,0.53203,3048.6,3048.2,0.53320154]
[1763454895557,3.21048168,3049.4,3048.2,0.53320154]
[1763454895949,0.53198,3048.9,3048.2,0.53320154]
[1763454896150,0.1874,3049.0,3048.2,0.53320154]
[1763454896151,0.53201,3048.7,3048.2,0.53320154]
[1763454896355,0.53203,3048.6,3048.2,0.00820154]
[1763454896857,0.4823,3048.3,3048.2,0.00820154]
[1763454899251,0.4823,3048.3,3048.2,1.2578662]
[1763454899757,3.2078,3048.6,3048.5,0.5328]
[1763454899959,3.21048168,3049.4,3048.5,5.32496466]
[1763454900160,0.53457168,3049.4,3049.0,3.2078]
[1763454900362,0.532,3049.2,3049.1,1.24966466]
[1763454900562,0.00268168,3049.4,3049.1,1.24966466]
[1763454900861,0.532,3049.3,3049.2,1.24966466]
[1763454901061,0.532,3049.3,3048.9,3.2078]
[1763454901062,0.7931,3049.0,3048.9,3.2078]
[1763454901261,0.532,3048.6,3048.5,3.2078]
[1763454901460,3.2078,3049.3,3048.6,0.3347]
[1763454901655,0.00268168,3049.4,3049.3,0.5328]
[1763454902861,0.00268168,3049.4,3049.3,1.40280862]
[1763454903065,0.00268168,3049.4,3049.3,3.7406]
[1763454903259,0.00268168,3049.4,3049.3,9.7406]
[1763454903558,0.00268168,3049.4,3049.3,4.90061149]
[1763454903955,0.00268168,3049.4,3049.3,3.7406]
[1763454904154,0.00268168,3049.4,3049.3,4.89600926]
[1763454904356,0.00268168,3049.4,3049.3,3.7406]
[1763454905166,0.00268168,3049.4,3049.3,4.89595277]
[1763454905465,0.00268168,3049.4,3049.3,3.7406]
[1763454905662,3.2078,3050.4,3050.3,0.5328]
[1763454905855,3.2078,3050.4,3049.9,0.86662773]
[1763454906061,4.06582,3050.4,3049.9,0.86662773]
[1763454906263,0.53175,3050.2,3049.9,0.86662773]
[1763454906563,0.0042438,3050.2,3049.9,0.86662773]
[1763454907668,0.0042438,3050.2,3050.1,0.5328]
[1763454908766,0.0042438,3050.2,3049.9,0.86662773]
[1763454908968,0.0042438,3050.2,3049.8,0.3347]
[1763454908969,0.0042438,3050.2,3050.1,0.5328]
[1763454909173,0.0042438,3050.2,3049.9,0.86662773]
[1763454909668,0.0042438,3050.2,3050.1,0.5328]
[1763454909972,12.57745329,3053.8,3050.1,0.5328]
[1763454909973,3.2078,3051.2,3051.1,0.5328]
[1763454910169,3.2078,3051.6,3051.5,0.5328]
[1763454910569,3.2078,3052.5,3051.9,0.5328]
[1763454910766,0.53134,3052.6,3051.9,3.7406]
[1763454911069,3.2078,3052.9,3051.9,3.7406]
[1763454911070,0.09327037,3052.0,3051.9,3.7445394]
[1763454911372,3.2078,3054.3,3054.0,0.2415]
[1763454911572,2.65989642,3054.9,3053.9,3.2078]
[1763454911773,0.3263,3054.0,3053.4,0.86286873]
[1763454911968,0.3263,3054.0,3053.0,0.86286873]
[1763454912160,0.32999756,3054.0,3053.5,3.2078]
[1763454912471,0.32999756,3054.0,3053.1,3.2078]
[1763454912871,0.3263,3053.4,3053.1,3.2078]
[1763454913172,0.85749,3053.4,3053.2,0.0049128]
[1763454913368,2.1,3053.3,3052.7,3.2078]
[1763454913669,0.3263,3052.7,3052.3,3.2078]
[1763454914170,0.3263,3052.7,3051.9,3.2117394]
[1763454914365,3.2078,3052.4,3052.0,0.0049128]
[1763454914862,0.3263,3052.7,3052.1,4.05005633]
[1763454915062,0.3263,3052.7,3052.6,3.2078]
[1763454915374,7.711,3053.2,3052.6,4.04880902]
[1763454915567,3.2078,3053.3,3052.6,3.2078]
[1763454916369,0.3263,3053.4,3052.7,0.86189571]
[1763454916568,0.00488487,3053.9,3053.0,3.2078]
[1763454916769,0.00488487,3053.9,3053.1,0.86189571]
[1763454917076,0.00488487,3053.9,3053.2,0.86189571]
[1763454917271,0.3263,3053.4,3053.0,3.2078]
[1763454917970,0.3263,3052.7,3052.3,0.86286873]
[1763454918275,0.3263,3052.7,3052.2,3.2078]
[1763454918579,0.3263,3052.7,3052.0,0.0049128]
[1763454918580,3.5341,3052.7,3052.0,0.0049128]
[1763454918779,0.53141,3052.2,3052.0,0.0049128]
[1763454919070,3.2078,3052.3,3052.0,0.0049128]
[1763454919266,2.84641,3052.2,3052.0,0.0049128]
[1763454919468,2.84641,3052.2,3052.0,1.28e-05]
[1763454919684,0.3455,3052.0,3051.9,0.0039394]
[1763454920372,3.2078,3052.3,3051.9,0.0039394]
[1763454920574,8.4523,3052.7,3051.9,3.2117394]
[1763454920764,0.0049128,3052.6,3052.0,0.0049128]
[1763454921374,0.0049128,3052.6,3052.3,3.2078]
[1763454921780,0.53137,3052.4,3052.0,0.0049128]
[1763454922073,0.0049128,3052.6,3052.0,0.0049128]
[1763454922282,0.53141,3052.2,3052.0,0.0049128]
[1763454922580,0.3455,3052.0,3051.4,3.2078]
[1763454922767,0.53153,3051.5,3051.0,3.2078]
[1763454922972,3.2078,3051.7,3051.0,3.2078]
[1763454923471,3.21190512,3051.7,3051.0,3.21515989]
[1763454923880,0.00410512,3051.7,3051.4,3.2078]
[1763454926080,0.6191,3051.5,3051.0,4.07802862]
[1763454926289,0.6191,3051.5,3051.0,3.21515989]
[1763454926784,0.3455,3051.3,3051.1,0.86232608]
[1763454926985,0.3455,3051.3,3051.0,3.21515989]
[1763454927188,0.3455,3051.3,3051.1,0.86259087]
[1763454927382,0.3455,3051.3,3051.0,3.21515989]
[1763454927688,0.00410512,3051.7,3051.1,1.72599276]
[1763454927884,0.00410512,3051.7,3051.2,0.86312403]
[1763454928074,0.00410512,3051.7,3051.3,0.86312403]
[1763454928280,0.00410512,3051.7,3051.4,0.86312403]
[1763454928480,0.00410512,3051.7,3051.5,0.86312403]
[1763454928681,0.00410512,3051.7,3051.6,0.86312403]
[1763454929584,0.00410512,3051.7,3051.6,1.12712403]
[1763454930292,0.00410512,3051.7,3051.6,0.86312403]
[1763454930882,0.56690512,3051.7,3051.6,0.86312403]
[1763454931078,0.5628,3051.5,3051.4,3.2078]
[1763454931279,0.53559512,3051.7,3051.4,3.2078]
[1763454931280,3.2078,3052.2,3051.6,0.264]
[1763454931494,0.0049128,3052.6,3052.5,0.2599]
[1763454931798,3.2078,3053.8,3052.5,4.07369726]
[1763454931976,3.2078,3054.2,3053.6,1.1471513]
[1763454932177,1.9284,3055.2,3052.3,3.295]
[1763454932178,3.2078,3054.8,3053.9,0.86020975]
[1763454932377,3.2107275,3054.8,3054.1,0.86020975]
[1763454932589,3.2107275,3054.8,3054.4,0.86020975]
[1763454932780,0.0078403,3054.8,3054.7,4.06800975]
[1763454932977,0.0078403,3054.8,3054.7,4.93390701]
[1763454933476,0.0078403,3054.8,3054.7,0.86589726]
[1763454933681,0.3792403,3054.8,3054.3,4.3549513]
[1763454933880,3.2078,3055.3,3054.4,1.72107638]
[1763454934183,0.3714,3055.8,3055.2,3.2078]
[1763454934386,0.3714,3055.8,3055.3,0.86244017]
[1763454934699,0.3714,3054.8,3054.7,0.85689262]
[1763454934889,0.37562754,3054.8,3054.7,0.86141821]
[1763454935281,0.00422754,3054.8,3054.7,0.86141821]
[1763454935682,0.00422754,3054.8,3054.7,2.00856951]
[1763454936285,0.0049128,3055.1,3054.7,2.00856951]
[1763454936485,0.0049128,3055.1,3054.9,0.85646732]
[1763454936685,0.0049128,3055.1,3055.0,0.86141821]
[1763454937187,0.00913167,3055.1,3055.0,0.86141821]
[1763454938387,0.53091,3055.0,3054.8,3.2078]
[1763454938582,0.00913167,3055.1,3054.9,0.86133921]
[1763454938789,0.3714,3054.8,3054.2,0.85646732]
[1763454939088,0.53101,3054.5,3054.1,0.0049128]
[1763454939291,0.3714,3054.8,3054.3,0.85646732]
[1763454939483,0.3714,3054.8,3054.4,0.85646732]
[1763454939796,0.90235,3054.8,3054.4,0.85646732]
[1763454940094,0.3714,3054.8,3054.3,0.85646732]
[1763454940296,0.3714,3054.8,3054.3,4.06426732]
[1763454940492,0.3714,3054.8,3054.4,0.85646732]
[1763454940796,3.2078,3054.5,3054.3,0.85646732]
[1763454941098,3.2078,3054.5,3054.1,0.0049128]
[1763454941293,0.53104,3054.3,3054.1,0.0049128]
[1763454941493,3.2078,3054.5,3053.9,0.00422913]
[1763454941494,0.53108,3054.0,3053.9,0.00422913]
[1763454941689,0.3714,3053.4,3053.1,1.1471513]
[1763454941888,0.3714,3053.4,3052.5,3.2078]
[1763454941889,3.2078,3053.3,3052.5,3.2078]
[1763454942585,0.3714,3052.7,3052.6,0.0049128]
[1763454942791,0.37386247,3052.7,3052.6,0.0049128]
[1763454943897,0.00246247,3052.7,3052.6,0.0049128]
[1763454946690,0.53133,3052.6,3052.5,0.00392383]
[1763454946889,0.00246247,3052.7,3050.6,40.8]
[1763454946890,0.00246247,3052.7,3051.7,3.2078]
[1763454947087,0.53139,3052.3,3051.7,3.2078]
[1763454947289,0.5314,3052.2,3051.7,3.2078]
[1763454947487,0.53142,3052.1,3051.7,3.2078]
[1763454947692,0.3714,3052.0,3051.7,3.2078]
[1763454947892,0.00246247,3052.7,3051.7,3.2110606]
[1763454948097,0.53377247,3052.7,3051.7,3.2110606]
[1763454948487,0.53133,3052.6,3051.7,3.2110606]
[1763454948692,0.0049128,3053.2,3052.2,3.2078]
[1763454948887,0.0049128,3053.2,3052.8,3.2078]
[1763454949400,0.53135,3052.5,3052.4,3.2078]
[1763454949594,0.3714,3052.0,3051.9,3.2078]
[1763454949802,0.37476578,3052.0,3051.9,3.2078]
[1763454950000,0.37476578,3052.0,3051.7,0.0032606]
[1763454950202,0.00336578,3052.0,3051.9,3.2078]
[1763454950800,0.00336578,3052.0,3051.9,4.05067664]
[1763454951598,0.3714,3052.7,3051.9,10.05067664]
[1763454951797,0.3714,3052.7,3052.6,3.2078]
[1763454951992,0.53117,3053.3,3052.6,3.2078]
[1763454952200,0.53114,3053.5,3053.0,3.2078]
[1763454952407,3.2078,3053.6,3053.0,3.2078]
[1763454952698,0.00906108,3053.2,3053.1,0.84221383]
[1763454954805,0.54025108,3053.2,3053.0,3.2078]
[1763454955104,0.00906108,3053.2,3053.0,3.2078]
[1763454955307,0.00906108,3053.2,3053.1,0.84307394]
[1763454955501,0.00906108,3053.2,3053.0,3.2078]
[1763454955897,0.00906108,3053.2,3053.1,0.84304816]
[1763454956205,0.00906108,3053.2,3053.0,3.2078]
[1763454956400,0.5312,3053.1,3053.0,3.2078]
[1763454957601,0.53128,3052.6,3052.5,3.2078]
[1763454957905,0.53128,3052.6,3052.5,4.05203651]
[1763454958103,0.53128,3052.6,3052.5,3.2078]
[1763454958408,0.00906108,3053.2,3052.1,3.2078]
[1763454958409,0.53134,3052.3,3052.1,3.2078]
[1763454960002,3.2078,3052.6,3052.1,3.2078]
[1763454960207,0.53132,3052.4,3052.1,3.2078]
[1763454960603,3.2078,3052.6,3052.1,3.2078]
[1763454960604,0.53134,3052.3,3052.1,3.2078]
[1763454960894,3.73909,3052.6,3052.1,3.2078]
[1763454961101,3.2078,3053.1,3052.2,0.84573433]
[1763454961308,3.739,3053.1,3052.5,3.2078]
[1763454961606,3.2078,3053.1,3052.6,0.84573433]
[1763454961906,3.2078,3053.1,3052.7,0.84573433]
[1763454962103,3.2078,3053.1,3052.5,3.2078]
[1763454962310,0.00906108,3053.2,3053.0,3.2078]
[1763454962610,0.00906108,3053.2,3053.1,0.84551188]
[1763454963308,0.54024108,3053.2,3053.0,3.2078]
[1763454963704,0.00906108,3053.2,3053.0,3.2078]
[1763454963907,0.00906108,3053.2,3052.6,3.2078]
[1763454964108,0.5312,3053.1,3053.0,3.2078]
[1763454965308,0.00906108,3053.2,3053.0,3.2078]
[1763454965909,3.2078,3054.4,3053.1,0.84699945]
[1763454966106,3.2078,3054.4,3053.7,3.2078]
[1763454966307,3.2078,3054.4,3053.8,0.84699945]
[1763454966503,0.53099,3054.3,3053.9,0.84699945]
[1763454966706,3.2078,3054.4,3054.0,0.84699945]
[1763454966907,0.53094,3054.6,3053.7,3.2078]
[1763454967109,3.5792,3054.8,3053.8,0.84643554]
[1763454967312,0.0049128,3054.6,3054.0,0.0049128]
[1763454967510,0.0049128,3054.6,3054.1,0.84643554]
[1763454967713,0.53096,3054.5,3054.2,0.84643554]
[1763454967914,0.53096,3054.5,3054.3,0.84643554]
[1763454968111,0.53096,3054.5,3054.0,0.0049128]
[1763454968413,0.53099,3054.3,3054.1,0.84740905]
[1763454968610,0.53099,3054.3,3054.2,0.84740905]
[1763454968809,0.53097,3054.5,3054.2,0.84740905]
[1763454969115,0.53097,3054.4,3054.3,0.84740905]
[1763454969514,0.0049128,3054.6,3054.3,0.84740905]
[1763454969710,0.0049128,3054.6,3054.4,0.84740905]
[1763454969916,0.0049128,3054.6,3054.5,0.84740905]
[1763454970722,0.0049128,3054.6,3054.5,9.05e-06]
[1763454970903,0.77422,3054.1,3054.0,0.0049128]
[1763454971103,6.77422,3054.1,3054.0,0.0049128]
[1763454971302,0.2432,3054.1,3053.3,3.2078]
[1763454971509,0.53123,3052.9,3052.8,3.2078]
[1763454971717,0.53122,3053.0,3052.8,3.2078]
[1763454972225,3.2078,3053.4,3052.7,3.2078]
[1763454972417,3.2078,3053.4,3052.7,3.60571368]
[1763454972611,3.2127128,3053.4,3052.7,3.61062648]
[1763454973117,0.0049128,3053.4,3052.8,3.2078]
[1763454973817,0.0049128,3053.4,3053.2,3.2078]
[1763454975418,0.0049128,3053.4,3053.2,4.36130016]
[1763454975619,0.0049128,3053.4,3053.3,1.15350016]
[1763454976514,0.0049128,3053.4,3053.2,3.2078]
[1763454976710,0.0049128,3053.4,3053.2,4.92740689]
[1763454976913,0.0049128,3053.4,3052.7,2.69563567]
[1763454976914,3.2078,3055.5,3054.1,0.3812]
[1763454977121,3.2078,3055.5,3055.1,3.2078]
[1763454977313,3.2078,3055.5,3054.6,1.72846701]
[1763454977314,3.6016,3055.5,3054.8,1.15231134]
[1763454977513,3.6016,3055.5,3054.6,3.2078]
[1763454977808,0.53085,3055.1,3055.0,3.2078]
[1763454978214,0.5309,3054.8,3054.7,0.0049128]
[1763454978417,0.53088,3055.0,3054.7,0.0049128]
[1763454978618,0.53088,3055.0,3054.9,3.2078]
[1763454979012,0.53082,3055.3,3054.9,3.2078]
[1763454979212,0.0049128,3055.4,3054.9,3.2078]
[1763454979613,0.53086,3055.1,3054.9,3.2078]
[1763454980233,0.53084,3055.2,3054.9,3.2078]
[1763454980426,0.5357228,3055.4,3054.9,3.2078]
[1763454980611,0.0049128,3055.4,3054.9,3.2078]
[1763454980811,0.0049128,3055.4,3055.3,3.2078]
[1763454982830,0.0049128,3055.4,3055.3,4.0667166]
[1763454984025,2.1269,3056.2,3055.3,4.0667166]
[1763454984026,3.2078,3056.7,3055.5,0.1468]
[1763454984325,0.4586,3056.2,3056.1,3.2078]
[1763454985029,0.46262477,3056.2,3056.1,3.2078]
[1763454985230,0.00402477,3056.2,3056.1,3.2078]
[1763454987528,0.41682477,3056.2,3056.1,3.2078]
[1763454988928,0.53075,3055.7,3055.6,3.2078]
[1763454989127,0.53073,3055.8,3055.6,3.2078]
[1763454989932,0.41682477,3056.2,3055.6,3.2078]
[1763454990119,0.53073,3055.8,3055.6,3.2078]
[1763454991424,0.41682477,3056.2,3055.6,3.2078]
[1763454991629,0.41682477,3056.2,3056.0,3.2078]
[1763454991630,0.94748477,3056.2,3056.0,3.2078]
[1763454992534,0.6818,3056.1,3056.0,3.2078]
[1763454993431,0.94748477,3056.2,3056.0,3.2078]
[1763454993630,0.00402477,3056.2,3056.1,0.4742]
[1763454994925,11.795,3057.8,3056.1,0.4742]
[1763454994926,0.53049,3057.2,3056.4,0.4702]
[1763454995130,0.53049,3057.2,3057.0,3.2078]
[1763454995427,0.53045,3057.5,3057.0,3.2078]
[1763454995633,3.2424,3058.7,3057.4,3.2078]
[1763454995931,0.09481907,3058.6,3058.5,3.2078]
[1763454996232,3.2078,3061.9,3059.0,3.2078]
[1763454996537,0.4128,3062.5,3060.0,3.2078]
[1763454996538,0.4128,3060.4,3060.0,3.2078]
[1763454996732,0.4128,3060.4,3058.5,7.77778679]
[1763454996733,0.4128,3060.4,3059.9,3.2078]
[1763454997038,0.52998,3060.1,3059.9,3.2078]
[1763454997240,0.53285294,3060.1,3059.9,3.21092887]
[1763454997432,0.00287294,3060.1,3059.9,3.21092887]
[1763454997632,0.53,3060.0,3059.9,3.21092887]
[1763454997833,0.53285294,3060.1,3059.9,3.21092887]
[1763454998229,8.26887294,3060.1,3059.9,3.21092887]
[1763454998531,3.79720001,3060.0,3059.7,0.00490427]
[1763454998738,0.53003,3059.8,3059.7,0.00490427]
[1763454999033,3.74066294,3060.1,3059.7,0.00490427]
[1763454999240,0.00287294,3060.1,3060.0,3.2078]
[1763454999440,0.53003,3059.8,3059.7,0.00490427]
[1763454999638,0.53003,3059.8,3059.7,0.00866861]
[1763454999942,7.95703,3059.8,3059.7,0.00866861]
[1763455000126,8.79503,3059.8,3059.7,0.00866861]
[1763455000534,0.53003,3059.8,3059.7,0.00866861]
[1763455000741,0.53002,3059.9,3059.7,0.00866861]
[1763455001238,0.53016,3059.1,3059.0,3.2078]
[1763455001734,17.4718,3059.1,3057.9,0.857193]
[1763455001944,3.2078,3058.2,3057.5,3.2078]
[1763455002139,7.192,3058.1,3057.5,3.21544073]
[1763455002329,3.21270427,3058.2,3057.5,3.21544073]
[1763455002642,1.752,3058.1,3057.5,3.21544073]
[1763455002941,3.21270427,3058.2,3057.5,3.21544073]
[1763455003140,1.752,3058.1,3057.5,3.21544073]
[1763455003437,0.4128,3057.6,3057.5,0.00764073]
[1763455003629,0.41586072,3057.6,3057.5,0.00764073]
[1763455003834,0.4128,3056.8,3056.3,3.2078]
[1763455004032,6.7638,3056.8,3056.4,3.2078]
[1763455004635,3.2078,3056.7,3055.9,3.2078]
[1763455004839,0.00490427,3056.6,3056.0,0.00490427]
[1763455006140,0.00490427,3056.6,3056.3,3.2078]
[1763455009143,3.2078,3056.4,3056.2,0.00858]
[1763455009536,1.986,3056.3,3056.2,0.00858]
[1763455009942,0.4128,3056.0,3055.5,3.2078]
[1763455010238,0.4128,3055.2,3054.9,3.2078]
[1763455010442,0.4128,3055.2,3054.1,3.2078]
[1763455010443,3.2078,3055.1,3054.1,3.2078]
[1763455010745,6.7278,3055.1,3054.1,3.2078]
[1763455010947,0.00490427,3054.9,3054.3,0.00490427]
[1763455011336,0.00884868,3054.9,3054.3,0.00871242]
[1763455011543,1.859,3054.8,3054.3,0.00871242]
[1763455011841,0.00884868,3054.9,3054.5,0.53094]
[1763455012047,0.00884868,3054.9,3054.6,3.2078]
[1763455012239,0.00884868,3054.9,3054.7,0.53091]
[1763455012439,0.00884868,3054.9,3054.6,3.2078]
[1763455012739,0.00884868,3054.9,3054.3,0.00871242]
[1763455012740,0.4128,3054.4,3054.3,0.00871242]
[1763455013148,9.6864,3054.4,3054.1,3.2078]
[1763455013348,3.2736,3054.3,3054.1,3.2078]
[1763455013540,3.2736,3054.3,3053.7,0.0327477]
[1763455013738,3.2078,3054.0,3053.7,0.0327477]
[1763455013947,8.115,3053.9,3053.7,0.0327477]
[1763455014247,8.046,3053.9,3053.7,0.03680976]
[1763455014847,8.046,3053.9,3053.5,0.00490427]
[1763455014848,0.4128,3053.6,3053.5,0.00490427]
[1763455015247,8.6908,3053.6,3053.5,0.00490427]
[1763455015842,8.6908,3053.6,3053.5,0.0081064]
[1763455016241,3.2078,3054.0,3053.5,0.0081064]
[1763455016652,0.4128,3054.4,3053.6,3.2078]
[1763455017043,3.2078,3054.2,3053.6,3.2078]
[1763455017254,3.2078,3054.2,3053.5,0.0081064]
[1763455017548,8.275,3054.1,3053.5,0.5392264]
[1763455017748,8.274,3054.0,3053.5,0.5392264]
[1763455017942,3.2078,3054.2,3053.5,0.0081064]
[1763455018141,1.781,3054.1,3053.5,0.0081064]
[1763455018342,3.2078,3053.8,3053.5,0.0081064]
[1763455018650,3.2078,3054.6,3053.6,12.8719]
[1763455018950,3.2078,3055.2,3054.8,0.53089]
[1763455019248,8.186,3055.4,3054.9,0.53087]
[1763455019453,3.2078,3055.8,3055.1,0.53084]
[1763455019649,3.2078,3055.8,3054.7,3.2078]
[1763455019650,1.792,3055.7,3054.7,3.2078]
[1763455019948,0.00490427,3055.5,3055.3,0.53081]
[1763455020452,3.2078,3056.9,3056.7,0.53056]
[1763455020652,0.5919,3060.0,3056.5,3.2078]
[1763455020653,3.2078,3057.7,3056.5,3.2078]
[1763455020841,0.5919,3060.0,3057.0,3.2078]
[1763455020842,3.2078,3058.1,3057.0,3.2078]
[1763455021042,11.796,3059.7,3057.9,0.53036]
[1763455021043,3.2078,3058.5,3057.9,0.53036]
[1763455021244,6.0308,3058.8,3057.5,3.2078]
[1763455021449,3.2078,3058.4,3057.8,0.00490427]
[1763455021648,4.126,3058.3,3057.8,3.21270427]
[1763455021846,3.2078,3058.4,3057.8,0.00490427]
[1763455022043,8.304,3058.3,3057.8,0.00490427]
[1763455022241,0.5919,3058.2,3057.9,0.40244388]
[1763455022446,0.5919,3058.2,3058.0,0.40244388]
[1763455022649,3.8615,3058.2,3058.1,0.40244388]
[1763455022848,2.7279,3058.2,3057.5,0.00244577]
[1763455023047,3.2078,3057.9,3056.4,0.8505132]
[1763455023250,5.355,3057.8,3056.6,3.2078]
[1763455023444,8.305,3057.7,3057.0,3.73832]
[1763455023644,8.305,3057.7,3057.1,0.89559128]
[1763455023844,0.5919,3057.3,3057.1,0.00490427]
[1763455024247,0.5919,3057.3,3057.1,0.00840899]
[1763455025146,0.5919,3058.2,3057.1,0.00840899]
[1763455025349,0.00490427,3058.5,3058.0,3.2078]
[1763455025553,0.00490427,3058.5,3057.8,0.53037]
[1763455025753,0.00490427,3058.5,3057.6,3.2078]
[1763455025957,0.00490427,3058.5,3057.7,0.89476663]
[1763455026157,0.00490427,3058.5,3057.6,3.73821]
[1763455026455,0.5716,3058.2,3057.7,0.89465545]
[1763455026654,0.5716,3058.2,3057.6,3.2078]
[1763455027147,0.5716,3058.2,3057.7,0.89487603]
[1763455027347,0.5716,3058.2,3057.6,3.2078]
[1763455027553,0.5716,3058.2,3057.2,3.2078]
[1763455027857,3.2078,3057.9,3057.2,3.2078]
[1763455028352,0.5716,3058.2,3057.3,0.89696316]
[1763455028554,3.2078,3057.9,3057.2,3.2078]
[1763455028756,0.5716,3058.2,3057.3,1.42748412]
[1763455029060,1.909,3058.1,3057.4,0.89702412]
[1763455029252,0.5716,3058.2,3057.2,3.2078]
[1763455029253,3.7794,3058.2,3057.2,3.2078]
[1763455029454,1.908,3058.1,3057.3,0.89806767]
[1763455029654,3.7794,3058.2,3057.7,0.5304]
[1763455029855,3.7794,3058.2,3057.6,3.2078]
[1763455030158,3.7794,3058.2,3057.7,1.42811132]